[Event "Championnat du monde jeunes U10F"]
[Date "2024.11.26"]
[White "Pambieri, Nicole"]
[Black "Serradell Munoz, Silvia"]
[WhiteElo "1482"]
[BlackElo "1670"]
[Round "11.32"]
[Result "0-1"]
[TimeControl "5400+30"]

1. c4 {[%clk 1:30:58]} 1... e5 {[%clk 1:30:08]} 2. g3 {[%clk 1:31:17]} 2... Nf6
{[%clk 1:29:01]} 3. Bg2 {[%clk 1:31:24]} 3... d5 {[%clk 1:28:23]} 4. Nf3 {[%clk
1:20:35]} 4... e4 {[%clk 1:24:35]} 5. Nd4 {[%clk 1:13:23]} 5... c5 {[%clk
1:21:58]} 6. Nb5 {[%clk 1:07:30]} 6... d4 {[%clk 1:18:29]} 7. d3 {[%clk
0:50:17]} 7... a6 {[%clk 1:14:24]} 8. N5a3 {[%clk 0:47:13]} 8... exd3 {[%clk
1:12:41]} 9. Qxd3 {[%clk 0:45:41]} 9... Nc6 {[%clk 1:09:51]} 10. Bf4 {[%clk
0:42:49]} 10... Be7 {[%clk 1:07:45]} 11. O-O {[%clk 0:42:55]} 11... O-O {[%clk
1:06:46]} 12. Nc2 {[%clk 0:41:17]} 12... Be6 {[%clk 1:01:56]} 13. Nd2 {[%clk
0:37:30]} 13... Nh5 {[%clk 0:55:47]} 14. e3 {[%clk 0:26:12]} 14... dxe3 {[%clk
0:53:50]} 15. Qxd8 {[%clk 0:24:03]} 15... exf2+ {[%clk 0:53:59]} 16. Rxf2 {[%clk
0:23:58]} 16... Raxd8 {[%clk 0:53:26]} 17. Bc7 {[%clk 0:22:26]} 17... Rc8 {[%clk
0:51:52]} 18. Bb6 {[%clk 0:22:07]} 18... Nf6 {[%clk 0:51:27]} 19. a4 {[%clk
0:04:22]} 19... Nd7 {[%clk 0:48:50]} 20. a5 {[%clk 0:04:43]} 20... Nxb6 {[%clk
0:48:54]} 21. axb6 {[%clk 0:05:07]} 21... Bd8 {[%clk 0:48:11]} 22. Ne4 {[%clk
0:03:15]} 22... Bxb6 {[%clk 0:46:48]} 23. Nd6 {[%clk 0:03:21]} 23... Rc7 {[%clk
0:46:51]} 24. Bxc6 {[%clk 0:03:06]} 24... bxc6 {[%clk 0:46:41]} 25. Rxa6 {[%clk
0:03:17]} 25... Ba7 {[%clk 0:46:24]} 26. Rd2 {[%clk 0:02:41]} 26... Bb8 {[%clk
0:45:07]} 27. b3 {[%clk 0:01:33]} 27... Rd8 {[%clk 0:44:29]} 28. Ra8 {[%clk
0:00:55]} 28... Rcd7 {[%clk 0:43:28]} 29. Ne4 {[%clk 0:00:37]} 29... Rxd2 {[%clk
0:43:45]} 30. Nxd2 {[%clk 0:00:58]} 30... g6 {[%clk 0:44:05]} 31. Nf3 {[%clk
0:01:01]} 31... Kg7 {[%clk 0:43:33]} 32. Kf1 {[%clk 0:00:56]} 32... Bh3+ {[%clk
0:42:58]} 33. Ke2 {[%clk 0:00:54]} 33... Bg4 {[%clk 0:42:41]} 34. Ne3 {[%clk
0:00:51]} 34... Re8 {[%clk 0:42:13]} 35. Ra6 {[%clk 0:00:00]} 0-1

[Variant "Standard"]
[Site "Europe Echecs"]

[Event "Championnat du monde jeunes U10F"]
[Date "2024.11.26"]
[White "Guerra Mansilla, Maria Ignacia"]
[Black "Song, Rina"]
[WhiteElo "1545"]
[BlackElo "1599"]
[Round "11.34"]
[Result "1/2-1/2"]
[TimeControl "5400+30"]

1. c4 {[%clk 1:30:22]} 1... e5 {[%clk 1:30:23]} 2. d3 {[%clk 1:30:44]} 2... Nc6
{[%clk 1:30:37]} 3. Nf3 {[%clk 1:30:48]} 3... Nf6 {[%clk 1:30:46]} 4. a3 {[%clk
1:30:28]} 4... d5 {[%clk 1:31:08]} 5. g3 {[%clk 1:16:20]} 5... Be7 {[%clk
1:29:08]} 6. Bg2 {[%clk 1:16:18]} 6... O-O {[%clk 1:28:56]} 7. O-O {[%clk
1:16:41]} 7... Bg4 {[%clk 1:28:47]} 8. h3 {[%clk 1:14:25]} 8... Be6 {[%clk
1:27:58]} 9. b3 {[%clk 1:13:25]} 9... dxc4 {[%clk 1:27:22]} 10. bxc4 {[%clk
1:13:20]} 10... e4 {[%clk 1:27:21]} 11. Ng5 {[%clk 1:09:39]} 11... Qd7 {[%clk
1:25:03]} 12. Nxe6 {[%clk 1:07:20]} 12... Qxe6 {[%clk 1:25:08]} 13. Bb2 {[%clk
1:03:55]} 13... Rfd8 {[%clk 1:24:15]} 14. Qc2 {[%clk 1:02:07]} 14... Nd4 {[%clk
1:23:33]} 15. Bxd4 {[%clk 1:01:06]} 15... Rxd4 {[%clk 1:23:53]} 16. Nd2 {[%clk
0:58:22]} 16... Rb8 {[%clk 1:23:54]} 17. Nxe4 {[%clk 0:56:31]} 17... Nxe4 {[%clk
1:24:10]} 18. Bxe4 {[%clk 0:56:30]} 18... Qxh3 {[%clk 1:24:05]} 19. Bg2 {[%clk
0:56:06]} 19... Qd7 {[%clk 1:21:26]} 20. Rfb1 {[%clk 0:46:45]} 20... c6 {[%clk
1:19:55]} 21. Rd1 {[%clk 0:43:38]} 21... h5 {[%clk 1:20:15]} 22. e3 {[%clk
0:43:04]} 22... Rd6 {[%clk 1:20:34]} 23. d4 {[%clk 0:43:21]} 23... h4 {[%clk
1:18:57]} 24. gxh4 {[%clk 0:42:00]} 24... Bxh4 {[%clk 1:19:17]} 25. Qe4 {[%clk
0:39:36]} 25... Bf6 {[%clk 1:17:54]} 26. Qf3 {[%clk 0:38:21]} 26... c5 {[%clk
1:17:00]} 27. dxc5 {[%clk 0:37:29]} 27... Rxd1+ {[%clk 1:16:27]} 28. Rxd1 {[%clk
0:37:34]} 28... Qa4 {[%clk 1:16:32]} 29. Rb1 {[%clk 0:32:14]} 29... Qxc4 {[%clk
1:16:23]} 30. Qd5 {[%clk 0:32:11]} 30... Qxd5 {[%clk 1:15:31]} 31. Bxd5 {[%clk
0:32:35]} 31... b6 {[%clk 1:15:57]} 32. cxb6 {[%clk 0:32:29]} 32... Rxb6 {[%clk
1:16:19]} 33. Rxb6 {[%clk 0:32:49]} 33... axb6 {[%clk 1:16:44]} 34. Kf1 {[%clk
0:33:01]} 34... Bc3 {[%clk 1:16:56]} 35. a4 {[%clk 0:33:18]} 35... Ba5 {[%clk
1:17:22]} 36. Ke2 {[%clk 0:33:36]} 36... Kf8 {[%clk 1:17:46]} 37. Kd3 {[%clk
0:33:41]} 37... Ke7 {[%clk 1:18:10]} 38. Kc4 {[%clk 0:34:02]} 38... f6 {[%clk
1:18:23]} 39. e4 {[%clk 0:33:32]} 39... Kd6 {[%clk 1:18:36]} 1/2-1/2

[Variant "Standard"]
[Site "Europe Echecs"]

[Event "Championnat du monde jeunes U10F"]
[Date "2024.11.26"]
[White "Gastaldo, Agathe"]
[Black "Minzat, Victoria"]
[WhiteElo "1589"]
[BlackElo "1505"]
[Round "11.35"]
[Result "0-1"]
[TimeControl "5400+30"]

1. e4 {[%clk 1:30:51]} 1... e5 {[%clk 1:30:53]} 2. Nf3 {[%clk 1:31:03]} 2... Nc6
{[%clk 1:31:08]} 3. Nc3 {[%clk 1:30:20]} 3... Bb4 {[%clk 1:30:34]} 4. d4 {[%clk
1:29:44]} 4... exd4 {[%clk 1:28:50]} 5. Nxd4 {[%clk 1:29:51]} 5... Qh4 {[%clk
1:28:11]} 6. Be2 {[%clk 1:27:57]} 6... Qxe4 {[%clk 1:27:39]} 7. Nxc6 {[%clk
1:28:00]} 7... Qxc6 {[%clk 1:27:33]} 8. O-O {[%clk 1:27:56]} 8... Nf6 {[%clk
1:25:08]} 9. Bf3 {[%clk 1:27:42]} 9... Qd6 {[%clk 1:22:54]} 10. Re1+ {[%clk
1:23:55]} 10... Kf8 {[%clk 1:21:57]} 11. Qe2 {[%clk 1:21:56]} 11... Qe7 {[%clk
1:19:37]} 12. Qf1 {[%clk 1:15:38]} 12... Qd8 {[%clk 1:18:02]} 13. Bg5 {[%clk
1:13:42]} 13... c6 {[%clk 1:16:52]} 14. Qc4 {[%clk 1:10:11]} 14... Be7 {[%clk
1:16:39]} 15. Re2 {[%clk 1:09:14]} 15... d5 {[%clk 1:16:14]} 16. Qf4 {[%clk
1:07:59]} 16... h6 {[%clk 1:13:58]} 17. Bxf6 {[%clk 1:06:28]} 17... Bxf6 {[%clk
1:13:45]} 18. Rae1 {[%clk 1:04:08]} 18... g5 {[%clk 1:13:39]} 19. Qb4+ {[%clk
1:03:37]} 19... Kg7 {[%clk 1:13:39]} 20. Rd1 {[%clk 0:57:47]} 20... Qb6 {[%clk
1:11:06]} 21. Qxb6 {[%clk 0:49:34]} 21... axb6 {[%clk 1:11:12]} 22. g3 {[%clk
0:45:40]} 22... Be6 {[%clk 1:10:52]} 23. Ra1 {[%clk 0:43:40]} 23... Ra7 {[%clk
1:10:44]} 24. a3 {[%clk 0:41:11]} 24... Bxc3 {[%clk 1:10:02]} 25. bxc3 {[%clk
0:41:25]} 25... Rha8 {[%clk 1:10:22]} 26. Rb1 {[%clk 0:41:18]} 26... b5 {[%clk
1:10:35]} 27. Bg2 {[%clk 0:41:10]} 27... Rxa3 {[%clk 1:10:33]} 28. Re3 {[%clk
0:36:29]} 28... Ra1 {[%clk 1:10:00]} 29. Rbe1 {[%clk 0:36:16]} 29... R8a3 {[%clk
1:09:43]} 30. Rf1 {[%clk 0:34:20]} 30... R3a2 {[%clk 1:09:06]} 31. f4 {[%clk
0:28:36]} 31... Rxf1+ {[%clk 1:07:58]} 32. Bxf1 {[%clk 0:28:02]} 32... Rxc2
{[%clk 1:07:16]} 33. fxg5 {[%clk 0:28:17]} 33... hxg5 {[%clk 1:07:21]} 34. Bg2
{[%clk 0:28:12]} 34... Rd2 {[%clk 1:06:52]} 35. Kf1 {[%clk 0:28:14]} 35... d4
{[%clk 1:06:31]} 36. cxd4 {[%clk 0:24:01]} 36... Rxd4 {[%clk 1:06:46]} 37. Ra3
{[%clk 0:23:50]} 37... Bd5 {[%clk 1:06:22]} 38. Bxd5 {[%clk 0:21:35]} 38... Rxd5
{[%clk 1:06:36]} 39. Ra7 {[%clk 0:21:00]} 39... Rd7 {[%clk 1:06:53]} 40. Ke2
{[%clk 0:21:21]} 40... Kf6 {[%clk 1:07:05]} 41. Kf2 {[%clk 0:21:18]} 41... g4
{[%clk 1:07:02]} 42. Ke3 {[%clk 0:21:29]} 42... Ke5 {[%clk 1:07:17]} 43. Ra3
{[%clk 0:21:34]} 43... b4 {[%clk 1:07:13]} 44. Rb3 {[%clk 0:21:56]} 44... c5
{[%clk 1:07:24]} 45. Kf2 {[%clk 0:21:34]} 45... Rd4 {[%clk 1:07:36]} 46. Ke3
{[%clk 0:21:40]} 46... Re4+ {[%clk 1:07:25]} 47. Kf2 {[%clk 0:21:48]} 47... Kd4
{[%clk 1:07:27]} 48. Rb2 {[%clk 0:21:15]} 48... Kc3 {[%clk 1:07:34]} 49. Ra2
{[%clk 0:21:17]} 49... b3 {[%clk 1:07:48]} 50. Ra7 {[%clk 0:21:11]} 50... Rb4
{[%clk 1:07:46]} 51. Ra3 {[%clk 0:21:35]} 51... Kc2 {[%clk 1:07:55]} 52. Ra1
{[%clk 0:21:06]} 52... b2 {[%clk 1:08:11]} 53. Ra2 {[%clk 0:21:02]} 53... Kc1
{[%clk 1:07:43]} 54. Rxb2 {[%clk 0:20:06]} 54... Kxb2 {[%clk 1:08:02]} 55. Ke3
{[%clk 0:20:21]} 55... c4 {[%clk 1:08:13]} 56. Kf4 {[%clk 0:20:37]} 56... c3+
{[%clk 1:08:33]} 57. Kg5 {[%clk 0:20:48]} 57... c2 {[%clk 1:08:56]} 58. Kf6
{[%clk 0:20:48]} 58... c1=Q {[%clk 1:09:15]} 59. Kg7 {[%clk 0:20:58]} 59... Qg5+
{[%clk 1:09:35]} 60. Kxf7 {[%clk 0:21:00]} 60... Rc4 {[%clk 1:09:53]} 61. Ke6
{[%clk 0:20:51]} 61... Rc6+ {[%clk 1:10:06]} 62. Kd7 Qg7+ {[%clk 1:10:24]} 63.
Kd8 {[%clk 0:21:27]} 63... Rc7 {[%clk 1:10:34]} 64. Ke8 {[%clk 0:21:35]} 64...
Qe7# {[%clk 1:10:57]} 0-1

[Variant "Standard"]
[Site "Europe Echecs"]

[Event "Championnat du monde jeunes U10F"]
[Date "2024.11.26"]
[White "Sobirova, Mumtozbegim"]
[Black "Abibulla, Inzhu"]
[WhiteElo "1476"]
[BlackElo "1499"]
[Round "11.36"]
[Result "1/2-1/2"]
[TimeControl "5400+30"]

1. e4 {[%clk 1:30:56]} 1... d6 {[%clk 1:30:48]} 2. d4 {[%clk 1:31:06]} 2... Nf6
{[%clk 1:31:06]} 3. Nc3 {[%clk 1:30:52]} 3... g6 {[%clk 1:30:52]} 4. f4 {[%clk
1:30:29]} 4... Bg7 {[%clk 1:30:47]} 5. Nf3 {[%clk 1:28:58]} 5... O-O {[%clk
1:30:05]} 6. e5 {[%clk 1:26:21]} 6... dxe5 {[%clk 1:29:51]} 7. fxe5 {[%clk
1:26:33]} 7... Nd5 {[%clk 1:29:29]} 8. Bc4 {[%clk 1:26:04]} 8... c6 {[%clk
1:27:51]} 9. O-O {[%clk 1:24:51]} 9... a5 {[%clk 1:26:33]} 10. a4 {[%clk
1:16:53]} 10... Na6 {[%clk 1:23:26]} 11. Bxa6 {[%clk 1:15:16]} 11... Rxa6 {[%clk
1:23:12]} 12. h3 {[%clk 1:14:57]} 12... Bf5 {[%clk 1:22:29]} 13. g4 {[%clk
1:10:30]} 13... Nxc3 {[%clk 1:21:38]} 14. bxc3 {[%clk 1:10:36]} 14... Be4 {[%clk
1:20:03]} 15. c4 {[%clk 1:05:47]} 15... Bxf3 {[%clk 1:19:16]} 16. Rxf3 {[%clk
1:04:41]} 16... Bxe5 {[%clk 1:16:22]} 17. Rd3 {[%clk 1:03:49]} 17... Bg7 {[%clk
1:16:34]} 18. Bf4 {[%clk 1:01:27]} 18... Qc8 {[%clk 1:15:16]} 19. Rb1 {[%clk
0:54:30]} 19... b6 {[%clk 1:11:54]} 20. c5 {[%clk 0:51:27]} 20... bxc5 {[%clk
1:11:28]} 21. dxc5 {[%clk 0:49:35]} 21... Qe6 {[%clk 1:10:14]} 22. Rb8 {[%clk
0:36:27]} 22... Ra8 {[%clk 1:05:38]} 23. Rxa8 {[%clk 0:36:35]} 23... Rxa8 {[%clk
1:06:01]} 24. Rd8+ {[%clk 0:36:45]} 24... Rxd8 {[%clk 1:06:23]} 25. Qxd8+ {[%clk
0:37:07]} 25... Bf8 {[%clk 1:06:51]} 26. Bh6 {[%clk 0:25:02]} 26... Qe1+ {[%clk
1:07:13]} 27. Kg2 {[%clk 0:25:06]} 27... Qe2+ {[%clk 1:07:28]} 28. Kg1 {[%clk
0:25:12]} 1/2-1/2

[Variant "Standard"]
[Site "Europe Echecs"]

[Event "Championnat du monde jeunes U10F"]
[Date "2024.11.26"]
[White "Muradli, Sabira"]
[Black "Minasyan, Arina"]
[WhiteElo "1430"]
[BlackElo "1545"]
[Round "11.42"]
[Result "1-0"]
[TimeControl "5400+30"]

1. e4 {[%clk 1:30:59]} 1... c5 {[%clk 1:30:54]} 2. d4 {[%clk 1:31:23]} 2... cxd4
{[%clk 1:31:19]} 3. Nf3 {[%clk 1:31:49]} 3... a6 {[%clk 1:31:15]} 4. Nxd4 {[%clk
1:32:13]} 4... Nf6 {[%clk 1:31:40]} 5. Nc3 {[%clk 1:32:35]} 5... e5 {[%clk
1:32:05]} 6. Nf3 {[%clk 1:32:48]} 6... Bb4 {[%clk 1:32:27]} 7. Bg5 {[%clk
1:33:10]} 7... h6 {[%clk 1:26:23]} 8. Bxf6 {[%clk 1:28:17]} 8... Qxf6 {[%clk
1:21:24]} 9. Bd3 {[%clk 1:27:20]} 9... O-O {[%clk 1:16:21]} 10. O-O {[%clk
1:27:40]} 10... Bxc3 {[%clk 1:16:46]} 11. bxc3 {[%clk 1:27:26]} 11... d6 {[%clk
1:11:09]} 12. Bc4 {[%clk 1:24:17]} 12... Nd7 {[%clk 1:03:56]} 13. Rb1 {[%clk
1:24:01]} 13... Nc5 {[%clk 0:51:49]} 14. Bd5 {[%clk 1:23:58]} 14... Rb8 {[%clk
0:47:10]} 15. Rb6 {[%clk 1:19:17]} 15... Rd8 {[%clk 0:37:17]} 16. Qd2 {[%clk
1:07:52]} 16... Be6 {[%clk 0:31:00]} 17. Re1 {[%clk 1:03:24]} 17... Qe7 {[%clk
0:26:29]} 18. Rd1 {[%clk 0:58:37]} 18... f6 {[%clk 0:23:10]} 19. h3 {[%clk
0:55:36]} 19... Rbc8 {[%clk 0:20:11]} 20. Nh4 {[%clk 0:55:09]} 20... Kh7 {[%clk
0:16:53]} 21. Bxe6 {[%clk 0:54:01]} 21... Qxe6 {[%clk 0:16:58]} 22. Qe2 {[%clk
0:53:55]} 22... Na4 {[%clk 0:08:36]} 23. Rxb7 {[%clk 0:51:04]} 23... Nxc3 {[%clk
0:08:25]} 24. Qh5 {[%clk 0:51:27]} 24... Rd7 {[%clk 0:08:38]} 25. Rxd7 {[%clk
0:51:30]} 25... Qxd7 {[%clk 0:09:03]} 26. Rd3 {[%clk 0:51:27]} 26... Nxa2 {[%clk
0:05:33]} 27. Nf5 {[%clk 0:49:41]} 27... Rc6 {[%clk 0:04:45]} 28. Rg3 {[%clk
0:49:54]} 28... Rc7 {[%clk 0:04:11]} 29. Rxg7+ {[%clk 0:49:54]} 29... Qxg7
{[%clk 0:04:33]} 30. Nxg7 {[%clk 0:50:20]} 30... Rxg7 {[%clk 0:04:56]} 31. Qf5+
{[%clk 0:50:46]} 31... Rg6 {[%clk 0:05:21]} 32. Qd7+ {[%clk 0:51:10]} 32... Rg7
{[%clk 0:05:46]} 33. Qxd6 {[%clk 0:51:35]} 33... Nc1 {[%clk 0:05:47]} 34. Qxa6
{[%clk 0:51:42]} 34... Rg6 {[%clk 0:06:12]} 35. Qb7+ {[%clk 0:51:20]} 35... Rg7
{[%clk 0:06:37]} 36. Qc6 {[%clk 0:51:26]} 36... Ne2+ {[%clk 0:06:58]} 37. Kh2
{[%clk 0:51:51]} 37... Nf4 {[%clk 0:07:24]} 38. g3 {[%clk 0:52:17]} 38... Nh5
{[%clk 0:07:35]} 39. Qe6 {[%clk 0:52:28]} 39... Rg6 {[%clk 0:07:55]} 40. Qf7+
{[%clk 0:52:49]} 40... Ng7 {[%clk 0:08:20]} 41. g4 {[%clk 0:53:01]} 41... Rg5
{[%clk 0:08:45]} 42. Qxf6 Rg6 {[%clk 0:09:08]} 43. Qxe5 {[%clk 0:53:43]} 43...
Re6 {[%clk 0:09:33]} 44. Qf4 {[%clk 0:54:07]} 44... Kg6 {[%clk 0:09:53]} 45. c4
{[%clk 0:54:26]} 45... Rf6 {[%clk 0:10:18]} 46. Qe3 {[%clk 0:54:49]} 46... Ne6
{[%clk 0:10:40]} 47. c5 {[%clk 0:54:57]} 47... Nc7 {[%clk 0:11:07]} 48. e5
{[%clk 0:55:14]} 48... Re6 {[%clk 0:11:27]} 49. Qe4+ {[%clk 0:55:39]} 49... Kf7
{[%clk 0:11:54]} 50. Qf5+ {[%clk 0:56:01]} 50... Ke7 {[%clk 0:12:19]} 51. f4
{[%clk 0:56:00]} 51... Nd5 {[%clk 0:12:44]} 52. Qe4 {[%clk 0:56:21]} 52... Nc7
{[%clk 0:13:00]} 53. f5 {[%clk 0:56:33]} 53... Ra6 {[%clk 0:13:23]} 54. Qd4
{[%clk 0:56:15]} 54... Ra2+ {[%clk 0:13:45]} 55. Kg3 {[%clk 0:56:38]} 55... Ra3+
{[%clk 0:14:13]} 56. Kh4 {[%clk 0:57:00]} 56... Ra6 {[%clk 0:14:27]} 57. Qd6+
{[%clk 0:57:14]} 57... Rxd6 {[%clk 0:14:46]} 58. cxd6+ {[%clk 0:57:38]} 58...
Kd7 {[%clk 0:15:05]} 59. dxc7 {[%clk 0:58:04]} 59... Kxc7 {[%clk 0:15:27]} 60.
f6 {[%clk 0:58:27]} 1-0

[Variant "Standard"]
[Site "Europe Echecs"]

[Event "Championnat du monde jeunes U10F"]
[Date "2024.11.26"]
[White "Kocherha, Yelizavieta"]
[Black "Vitsiuk, Aleksandra"]
[WhiteElo "1523"]
[BlackElo "1476"]
[Round "11.44"]
[Result "0-1"]
[TimeControl "5400+30"]

1. e4 {[%clk 1:30:54]} 1... e5 {[%clk 1:30:49]} 2. Nf3 {[%clk 1:31:07]} 2... Nc6
{[%clk 1:30:05]} 3. Bc4 {[%clk 1:31:00]} 3... Nf6 {[%clk 1:29:04]} 4. Ng5 {[%clk
1:30:52]} 4... d5 {[%clk 1:27:44]} 5. exd5 {[%clk 1:30:54]} 5... Na5 {[%clk
1:27:03]} 6. Bb5+ {[%clk 1:30:46]} 6... Bd7 {[%clk 1:24:49]} 7. Qe2 {[%clk
1:30:39]} 7... Be7 {[%clk 1:22:48]} 8. Nc3 {[%clk 1:22:36]} 8... O-O {[%clk
1:12:29]} 9. Nge4 {[%clk 1:16:44]} 9... c6 {[%clk 0:57:08]} 10. dxc6 {[%clk
1:15:19]} 10... Nxc6 {[%clk 0:55:15]} 11. Bxc6 {[%clk 1:13:50]} 11... Bxc6
{[%clk 0:55:08]} 12. O-O {[%clk 1:13:42]} 12... Nxe4 {[%clk 0:54:41]} 13. Nxe4
{[%clk 1:13:55]} 13... Qd5 {[%clk 0:54:58]} 14. f3 {[%clk 1:13:10]} 14... f5
{[%clk 0:52:46]} 15. Nc3 {[%clk 1:12:26]} 15... Qd4+ {[%clk 0:51:27]} 16. Kh1
{[%clk 1:08:23]} 16... e4 {[%clk 0:46:39]} 17. fxe4 {[%clk 1:04:46]} 17... fxe4
{[%clk 0:45:54]} 18. Rxf8+ {[%clk 1:03:59]} 18... Rxf8 {[%clk 0:46:14]} 19. b3
{[%clk 1:01:47]} 19... Rf2 {[%clk 0:45:02]} 20. Qe1 {[%clk 0:50:43]} 20... e3
{[%clk 0:44:34]} 21. dxe3 {[%clk 0:40:12]} 21... Qxc3 {[%clk 0:44:56]} 22. Qxf2
{[%clk 0:39:54]} 22... Qxa1 {[%clk 0:45:09]} 23. Qd2 {[%clk 0:39:08]} 23... Qf6
{[%clk 0:45:23]} 24. h3 {[%clk 0:37:41]} 24... Bd6 {[%clk 0:45:10]} 25. Qe2
{[%clk 0:37:27]} 25... Qe5 {[%clk 0:44:42]} 26. Kg1 {[%clk 0:36:08]} 26... Qh2+
{[%clk 0:45:04]} 27. Kf1 {[%clk 0:36:00]} 27... Qh1+ {[%clk 0:45:24]} 28. Kf2
{[%clk 0:35:48]} 28... Qxg2+ {[%clk 0:45:35]} 29. Ke1 {[%clk 0:34:49]} 29...
Bb4+ {[%clk 0:45:59]} 30. Bd2 {[%clk 0:32:58]} 30... Qg1+ {[%clk 0:46:22]} 0-1

[Variant "Standard"]
[Site "Europe Echecs"]

[Event "Championnat du monde jeunes U10F"]
[Date "2024.11.26"]
[White "Yang, Haeun"]
[Black "Babii, Oriiana"]
[WhiteElo "1475"]
[BlackElo "1481"]
[Round "11.47"]
[Result "1-0"]
[TimeControl "5400+30"]

1. e4 {[%clk 1:30:57]} 1... c5 {[%clk 1:30:52]} 2. Nf3 {[%clk 1:31:22]} 2... d6
{[%clk 1:31:10]} 3. d4 {[%clk 1:31:45]} 3... cxd4 {[%clk 1:31:33]} 4. Nxd4
{[%clk 1:32:06]} 4... Nf6 {[%clk 1:31:54]} 5. Nc3 {[%clk 1:32:26]} 5... g6
{[%clk 1:32:12]} 6. Be2 {[%clk 1:32:45]} 6... Bg7 {[%clk 1:32:23]} 7. O-O {[%clk
1:33:06]} 7... O-O {[%clk 1:32:14]} 8. Be3 {[%clk 1:33:31]} 8... Nc6 {[%clk
1:32:05]} 9. Nb3 {[%clk 1:33:53]} 9... Bd7 {[%clk 1:31:57]} 10. f4 {[%clk
1:33:35]} 10... Rc8 {[%clk 1:29:10]} 11. f5 {[%clk 1:32:25]} 11... Ne5 {[%clk
1:28:01]} 12. Qc1 {[%clk 1:31:35]} 12... Bc6 {[%clk 1:27:03]} 13. fxg6 {[%clk
1:30:38]} 13... hxg6 {[%clk 1:26:36]} 14. Rf4 {[%clk 1:28:59]} 14... Bd7 {[%clk
1:14:54]} 15. Rh4 {[%clk 1:28:33]} 15... Nfg4 {[%clk 1:13:13]} 16. Bd2 {[%clk
1:28:02]} 16... Qb6+ {[%clk 1:12:59]} 17. Kh1 {[%clk 1:25:47]} 17... Qf2 {[%clk
1:11:16]} 18. Rh3 {[%clk 1:15:03]} 18... Qxe2 {[%clk 0:00:00]} 19. Nxe2 {[%clk
1:15:20]} 19... Nf2+ {[%clk 1:08:01]} 20. Kg1 {[%clk 1:15:38]} 20... Nxh3+
{[%clk 1:08:18]} 21. gxh3 {[%clk 1:15:59]} 21... Nf3+ {[%clk 1:07:35]} 22. Kg2
{[%clk 1:15:55]} 22... Nxd2 {[%clk 1:06:00]} 23. Qxd2 {[%clk 1:16:05]} 23...
Bxb2 {[%clk 1:05:40]} 24. Rb1 {[%clk 1:15:55]} 24... Be5 {[%clk 1:05:42]} 25.
Nbd4 {[%clk 1:14:43]} 25... b6 {[%clk 1:04:31]} 26. Nf3 {[%clk 1:14:42]} 26...
Bg7 {[%clk 1:03:37]} 27. Ned4 {[%clk 1:14:08]} 27... Bf6 {[%clk 1:01:01]} 28.
Qh6 {[%clk 1:13:51]} 28... Bxd4 {[%clk 1:00:13]} 29. Nxd4 {[%clk 1:14:10]} 29...
e5 {[%clk 1:00:22]} 30. Nf3 {[%clk 1:13:56]} 30... Rxc2+ 31. Kg1 {[%clk
1:14:01]} 31... Rfc8 {[%clk 0:59:18]} 32. Ng5 {[%clk 1:13:36]} 32... Rc1+ {[%clk
0:58:37]} 33. Rxc1 {[%clk 1:13:54]} 33... Rxc1+ {[%clk 0:59:00]} 34. Kg2 {[%clk
1:14:20]} 34... Be6 {[%clk 0:59:12]} 35. Nxe6 {[%clk 1:14:26]} 35... Rc2+ {[%clk
0:59:25]} 36. Kg3 {[%clk 1:14:43]} 36... fxe6 {[%clk 0:59:11]} 37. Qxg6+ {[%clk
1:15:04]} 37... Kf8 {[%clk 0:59:10]} 38. Qxe6 {[%clk 1:15:03]} 38... Rc3+ {[%clk
0:58:37]} 39. Kh4 {[%clk 1:15:25]} 39... Rf3 {[%clk 0:57:20]} 40. Qxd6+ {[%clk
1:15:37]} 40... Kf7 {[%clk 0:56:22]} 41. Qxe5 {[%clk 1:15:38]} 1-0

[Variant "Standard"]
[Site "Europe Echecs"]